fUSD/lending_fUSD_20260116
["ID","MTS","AMOUNT","RATE_DAILY","PERIOD"]
[402207958,1768602513065,-10000.01,0.00013671,2]
[402207959,1768602513228,-10000.01,0.00013671,2]
[402207960,1768602514209,-10000.01,0.00013671,2]
[402207961,1768602514827,-10000.01,0.00013671,2]
[402207962,1768602515040,-10000.01,0.00013671,2]
[402207963,1768602515124,-10000.01,0.00013671,2]
[402207964,1768602548235,-500.0,0.00013571,2]
[402207965,1768602548268,-500.0,0.00013571,2]
[402207966,1768602548300,-500.0,0.00013571,2]
[402207967,1768602548565,-500.0,0.00013571,2]
[402207968,1768602548598,-500.0,0.00013571,2]
[402207969,1768602548630,-500.0,0.00013571,2]
[402207970,1768602548661,-500.0,0.00013571,2]
[402207971,1768602548693,-500.0,0.00013571,2]
[402207972,1768602548726,-500.0,0.00013571,2]
[402207973,1768602548763,-500.0,0.00013571,2]
[402207974,1768602549129,-0.01,0.00013571,2]
[402207975,1768602549202,-253.39799004,0.00013571,2]
[402207976,1768602551254,-246.59200996,0.00013571,2]
[402207977,1768602551283,-500.0,0.00013571,2]
[402207978,1768602551510,-500.0,0.00013571,2]
[402207979,1768602551542,-500.0,0.00013571,2]
[402207980,1768602551573,-500.0,0.00013571,2]
[402207981,1768602551603,-500.0,0.00013571,2]
[402207982,1768602551634,-500.0,0.00013571,2]
[402207983,1768602551664,-500.0,0.00013571,2]
[402207984,1768602551694,-500.0,0.00013571,2]
[402207985,1768602551727,-500.0,0.00013571,2]
[402207986,1768602551762,-6.82598008,0.00013571,2]
[402207987,1768602552175,-493.17401992,0.00013571,2]
[402207988,1768602557453,-500.0,0.00013571,2]
[402207989,1768602557484,-500.0,0.00013571,2]
[402207990,1768602557514,-500.0,0.00013571,2]
[402207991,1768602557544,-500.0,0.00013571,2]
[402207992,1768602557572,-500.0,0.00013571,2]
[402207993,1768602557602,-500.0,0.00013571,2]
[402207994,1768602557632,-500.0,0.00013571,2]
[402207995,1768602557664,-500.0,0.00013571,2]
[402207996,1768602557693,-500.0,0.00013571,2]
[402207997,1768602557724,-500.0,0.00013571,2]
[402207998,1768602557964,-0.01,0.00013571,2]
[402208004,1768602631982,-326.80947795,0.0001357,2]
[402208005,1768602631993,-873.19052205,0.0001357,2]
[402208006,1768602632002,-150.0,0.0001357,2]
[402208007,1768602632011,-2339.0468,0.00013571,2]
[402208008,1768602632020,-499.99,0.00013571,2]
[402208009,1768602632030,-500.0,0.00013571,2]
[402208010,1768602632039,-500.0,0.00013571,2]
[402208011,1768602632048,-500.0,0.00013571,2]
[402208012,1768602632058,-500.0,0.00013571,2]
[402208013,1768602632067,-500.0,0.00013571,2]
[402208014,1768602632076,-500.0,0.00013571,2]
[402208015,1768602632085,-500.0,0.00013571,2]
[402208016,1768602632095,-500.0,0.00013571,2]
[402208017,1768602632104,-432.15823719,0.00013571,2]
[402208018,1768602632113,-262.0,0.00013571,2]
[402208019,1768602632122,-500.0,0.00013596,2]
[402208020,1768602632131,-150.0,0.00013596,2]
[402208021,1768602632140,-150.0,0.00013596,2]
[402208022,1768602632150,-500.0,0.00013596,2]
[402208023,1768602632159,-500.0,0.00013651,2]
[402208024,1768602632168,-150.0,0.00013651,2]
[402208025,1768602632179,-150.0,0.00013651,2]
[402208026,1768602632188,-500.0,0.00013651,2]
[402208027,1768602632197,-200.0,0.00013671,2]
[402208028,1768602632206,-604.54147957,0.00013698,2]
[402208029,1768602632216,-500.0,0.00013698,2]
[402208030,1768602632226,-500.0,0.00013698,2]
[402208031,1768602632235,-500.0,0.00013698,2]
[402208032,1768602632244,-500.0,0.00013698,2]
[402208033,1768602632253,-500.0,0.00013698,2]
[402208034,1768602632262,-500.0,0.00013698,2]
[402208035,1768602632271,-167.01,0.00013699,2]
[402208036,1768602632281,-500.0,0.00013699,2]
[402208037,1768602632290,-500.0,0.00013699,2]
[402208039,1768602632299,-350.0,0.00013699,2]
[402208041,1768602632308,-500.0,0.00013706,2]
[402208042,1768602632317,-150.0,0.00013706,2]
[402208043,1768602632326,-150.0,0.00013706,2]
[402208045,1768602632335,-500.0,0.00013706,2]
[402208047,1768602632344,-500.0,0.0001376,2]
[402208049,1768602632353,-150.0,0.0001376,2]
[402208051,1768602632362,-150.0,0.0001376,2]
[402208053,1768602632370,-500.0,0.0001376,2]
[402208055,1768602632380,-1000.0,0.00013771,2]
[402208056,1768602632389,-200.0,0.00013808,2]
[402208058,1768602632398,-500.0,0.00013815,2]
[402208061,1768602632407,-150.0,0.00013815,2]
[402208062,1768602632416,-236.16592864,0.00013815,2]
[402208064,1768602632426,-500.0,0.00013815,2]
[402208066,1768602632436,-500.0,0.0001387,2]
[402208068,1768602632444,-500.0,0.0001387,2]
[402208070,1768602632455,-500.0,0.0001387,2]
[402208072,1768602632463,-500.0,0.0001387,2]
[402208074,1768602632472,-923.71300875,0.00013899,2]
[402208076,1768602632483,-166.66,0.00013909,2]
[402208078,1768602632492,-150.0,0.00013915,2]
[402208080,1768602632501,-200.0,0.00013924,2]
[402208081,1768602632510,-500.0,0.00013925,2]
[402208082,1768602632519,-500.0,0.00013925,2]
[402208083,1768602632529,-500.0,0.00013925,2]
[402208084,1768602632538,-6479.52,0.00013931,2]
[402208085,1768602632547,-200.0,0.00013946,2]
[402208086,1768602632557,-500.0,0.0001398,2]
[402208087,1768602632566,-500.0,0.0001398,2]
[402208088,1768602632575,-200.0,0.00013992,2]
[402208089,1768602632584,-1023.89018986,0.00014,2]
[402208090,1768602632593,-500.0,0.00014034,2]
[402208091,1768602632602,-500.0,0.00014034,2]
[402208093,1768602632611,-2597.12976848,0.00014052,2]
[402208095,1768602632636,-1299.26110527,0.00014052,2]
[402208096,1768602632646,-6005.43825341,0.00014052,2]
[402208097,1768602632657,-1207.84469469,0.00014052,2]
[402208098,1768602632667,-607.47,0.0001408,2]
[402208099,1768602632676,-500.0,0.0001408,2]
[402208100,1768602632685,-500.0,0.0001408,2]
[402208101,1768602632694,-500.0,0.0001408,2]
[402208102,1768602632702,-500.0,0.0001408,2]
[402208103,1768602632711,-200.0,0.00014085,2]
[402208104,1768602632720,-500.0,0.00014089,2]
[402208105,1768602632729,-500.0,0.00014089,2]
[402208106,1768602632737,-500.0,0.00014144,2]
[402208107,1768602632746,-500.0,0.00014144,2]
[402208108,1768602632755,-1818.24,0.00014156,2]
[402208109,1768602632765,-166.66,0.0001419,2]
[402208110,1768602632776,-500.0,0.00014194,2]
[402208111,1768602632786,-285.96192003,0.00014194,2]
[402208112,1768602632794,-500.0,0.00014199,2]
[402208113,1768602632803,-500.0,0.00014199,2]
[402208114,1768602632814,-500.0,0.00014199,2]
[402208115,1768602632823,-500.0,0.00014211,2]
[402208116,1768602632832,-201.84989659,0.00014211,2]
[402208117,1768602632840,-200.0,0.00014226,2]
[402208118,1768602632849,-500.0,0.00014254,2]
[402208119,1768602632858,-500.0,0.00014254,2]
[402208120,1768602632867,-20029.95246448,0.000143,2]
[402208121,1768602632876,-500.0,0.00014308,2]
[402208122,1768602632885,-500.0,0.00014308,2]
[402208123,1768602632894,-607.47,0.00014354,2]
[402208124,1768602632903,-500.0,0.00014363,2]
[402208125,1768602632911,-500.0,0.00014363,2]
[402208126,1768602632921,-6580.78013135,0.0001439,2]
[402208127,1768602632930,-500.0,0.00014418,2]
[402208128,1768602632940,-500.0,0.00014418,2]
[402208129,1768602632949,-570.35,0.00014462,2]
[402208130,1768602632960,-166.66,0.00014471,2]
[402208131,1768602632969,-500.0,0.00014473,2]
[402208132,1768602632979,-500.0,0.00014473,2]
[402208133,1768602632989,-500.0,0.00014528,2]
[402208134,1768602632998,-500.0,0.00014528,2]
[402208135,1768602633007,-3896.39087375,0.00014533,2]
[402208136,1768602633016,-7213.2829481,0.00014533,2]
[402208137,1768602633025,-499.02051773,0.00014582,2]
[402208138,1768602633035,-274.0,0.00014582,2]
[402208139,1768602633044,-607.47,0.00014628,2]
[402208140,1768602633053,-500.0,0.00014646,2]
[402208141,1768602633062,-500.0,0.00014654,2]
[402208142,1768602633071,-500.0,0.00014654,2]
[402208143,1768602633080,-500.0,0.00014654,2]
[402208144,1768602633089,-195.0,0.00014682,2]
[402208145,1768602633098,-255.0,0.00014683,2]
[402208146,1768602633107,-500.0,0.00014701,2]
[402208147,1768602633116,-500.0,0.00014709,2]
[402208148,1768602633125,-500.0,0.00014709,2]
[402208149,1768602633134,-500.0,0.00014709,2]
[402208150,1768602633143,-166.66,0.00014715,2]
[402208151,1768602633152,-166.66,0.00014752,2]
[402208152,1768602633161,-500.0,0.00014756,2]
[402208153,1768602633171,-500.0,0.00014759,2]
[402208154,1768602633180,-500.0,0.00014764,2]
[402208155,1768602633190,-500.0,0.00014764,2]
[402208156,1768602633199,-500.0,0.00014764,2]
[402208157,1768602633208,-500.0,0.0001481,2]
[402208158,1768602633217,-500.0,0.00014818,2]
[402208159,1768602633227,-500.0,0.00014818,2]
[402208160,1768602633236,-500.0,0.00014818,2]
[402208161,1768602633245,-500.0,0.00014849,2]
[402208162,1768602633254,-500.0,0.00014865,2]
[402208163,1768602633263,-500.0,0.00014873,2]
[402208164,1768602633272,-500.0,0.00014873,2]
[402208165,1768602633282,-500.0,0.00014873,2]
[402208166,1768602633291,-607.47,0.00014902,2]
[402208167,1768602633300,-500.0,0.0001492,2]
[402208168,1768602633310,-193.55917639,0.00014927,2]
[402208169,1768602633319,-195.0,0.00014927,2]
[402208170,1768602633328,-1680.0,0.00014927,2]
[402208171,1768602633337,-348.78949081,0.00014927,2]
[402208172,1768602633346,-488.11375467,0.00014927,2]
[402208173,1768602633355,-500.0,0.00014928,2]
[402208174,1768602633364,-500.0,0.00014928,2]
[402208175,1768602633373,-500.0,0.00014928,2]
[402208176,1768602633382,-195.0,0.00014928,2]
[402208177,1768602633391,-222.02860504,0.00014928,2]
[402208178,1768602633404,-27.97139496,0.00014928,2]
[402208179,1768602633413,-195.0,0.00014928,2]
[402208180,1768602633421,-683.02860504,0.0001496,2]
[402208181,1768602633432,-973.5,0.0001496,2]
[402208184,1768602638115,-447.66174487,0.0001496,2]
[402208193,1768602640438,-395.80965009,0.0001496,2]
[402208194,1768602640449,-2500.0,0.0001496,2]
[402208195,1768602640459,-584.51890262,0.0001496,2]
[402208196,1768602640470,-300.0,0.0001496,2]
[402208197,1768602640482,-600.0,0.0001496,2]
[402208198,1768602640491,-392.47456625,0.0001496,2]
[402208199,1768602640501,-500.0,0.00014975,2]
[402208200,1768602640511,-500.0,0.00014983,2]
[402208201,1768602640521,-500.0,0.00014983,2]
[402208202,1768602640531,-500.0,0.00014983,2]
[402208203,1768602640542,-2712.14399065,0.00015014,2]
[402208205,1768602641344,-669.26007495,0.00015014,2]
[402208206,1768602641448,-514.98680815,0.00015014,2]
[402208207,1768602641458,-7213.2829481,0.00015014,2]
[402208208,1768602641467,-500.0,0.0001503,2]
[402208209,1768602641476,-250.0,0.00015037,2]
[402208210,1768602641486,-500.0,0.00015038,2]
[402208211,1768602641495,-500.0,0.00015038,2]
[402208212,1768602641505,-500.0,0.00015084,2]
[402208213,1768602641516,-500.0,0.00015092,2]
[402208214,1768602641525,-500.0,0.00015092,2]
[402208215,1768602641541,-500.0,0.00015139,2]
[402208216,1768602641555,-500.0,0.00015147,2]
[402208217,1768602641564,-500.0,0.00015147,2]
[402208218,1768602641573,-151.0,0.00015161,2]
[402208219,1768602641582,-151.0,0.00015161,2]
[402208220,1768602641592,-607.47,0.00015176,2]
[402208221,1768602641602,-500.0,0.00015194,2]
[402208222,1768602641611,-166.66,0.00015201,2]
[402208223,1768602641621,-500.0,0.00015202,2]
[402208224,1768602641631,-500.0,0.00015202,2]
[402208225,1768602641641,-500.0,0.00015249,2]
[402208226,1768602641650,-500.0,0.00015257,2]
[402208227,1768602641660,-500.0,0.00015257,2]
[402208228,1768602641670,-150.0,0.00015283,2]
[402208229,1768602641680,-500.0,0.00015283,2]
[402208230,1768602641689,-150.0,0.00015283,2]
[402208231,1768602641699,-500.0,0.00015283,2]
[402208232,1768602641708,-500.0,0.00015283,2]
[402208233,1768602641718,-500.0,0.00015283,2]
[402208234,1768602641728,-500.0,0.00015283,2]
[402208235,1768602641738,-643.01588719,0.00015304,2]
[402208236,1768602641748,-500.0,0.00015307,2]
[402208237,1768602641757,-500.0,0.00015312,2]
[402208238,1768602641770,-500.0,0.00015312,2]
[402208239,1768602641779,-181.5474637,0.00015338,2]
[402208240,1768602641789,-500.0,0.00015338,2]
[402208241,1768602641799,-150.0,0.00015338,2]
[402208242,1768602641809,-500.0,0.00015338,2]
[402208243,1768602641819,-500.0,0.00015338,2]
[402208244,1768602641828,-500.0,0.00015338,2]
[402208245,1768602641839,-500.0,0.00015338,2]
[402208246,1768602641849,-500.0,0.00015366,2]
[402208247,1768602641859,-500.0,0.00015366,2]
[402208248,1768602641868,-151.0,0.00015372,2]
[402208249,1768602641878,-151.0,0.00015372,2]
[402208250,1768602641887,-350.0,0.00015393,2]
[402208251,1768602641897,-150.0,0.00015393,2]
[402208252,1768602641906,-500.0,0.00015393,2]
[402208253,1768602641916,-150.0,0.00015393,2]
[402208254,1768602641925,-500.0,0.00015393,2]
[402208255,1768602641935,-500.0,0.00015393,2]
[402208256,1768602641945,-500.0,0.00015421,2]
[402208257,1768602641954,-500.0,0.00015421,2]
[402208258,1768602641965,-500.0,0.00015447,2]
[402208259,1768602641974,-500.0,0.00015447,2]
[402208260,1768602641983,-500.0,0.00015447,2]
[402208261,1768602641993,-607.5,0.0001545,2]
[402208262,1768602642262,-500.0,0.00015476,2]
[402208263,1768602642272,-500.0,0.00015476,2]
[402208264,1768602642281,-500.0,0.00015479,2]
[402208265,1768602642290,-3896.39087375,0.00015495,2]
[402208266,1768602642300,-7213.2829481,0.00015495,2]
[402208267,1768602642309,-551.64421401,0.00015502,2]
[402208268,1768602642319,-350.0,0.00015502,2]
[402208269,1768602642327,-4699.22,0.00015514,2]
[402208270,1768602642336,-500.0,0.00015531,2]
[402208271,1768602642345,-500.0,0.00015531,2]
[402208272,1768602642354,-1000.0,0.00015557,2]
[402208273,1768602642363,-174.61919141,0.00015557,2]
[402208274,1768602642372,-151.0,0.00015557,2]
[402208275,1768602642381,-500.0,0.00015557,2]
[402208276,1768602642390,-1000.0,0.00015557,2]
[402208277,1768602642399,-500.0,0.00015557,2]
[402208278,1768602642408,-1000.0,0.00015557,2]
[402208279,1768602642416,-500.0,0.00015557,2]
[402208280,1768602642426,-500.0,0.00015557,2]
[402208281,1768602642436,-578.20924308,0.00015557,2]
[402208282,1768602642445,-1000.0,0.00015557,2]
[402208283,1768602642454,-500.0,0.00015557,2]
[402208284,1768602642463,-1000.0,0.00015557,2]
[402208285,1768602642472,-500.0,0.00015557,2]
[402208286,1768602642481,-1000.0,0.00015557,2]
[402208287,1768602642490,-278.08712803,0.00015557,2]
[402208288,1768602642499,-1000.0,0.00015557,2]
[402208289,1768602642508,-1000.0,0.00015557,2]
[402208290,1768602642518,-1000.0,0.00015557,2]
[402208291,1768602642527,-1000.0,0.00015557,2]
[402208292,1768602642536,-9000.0,0.00015557,2]
[402208293,1768602642545,-1000.0,0.00015557,2]
[402208294,1768602642554,-9000.0,0.00015557,2]
[402208295,1768602642563,-9000.0,0.00015557,2]
[402208296,1768602642572,-9000.0,0.00015557,2]
[402208297,1768602642581,-574.12855637,0.00015557,2]
[402208298,1768602642590,-9000.0,0.00015557,2]
[402208299,1768602642599,-9000.0,0.00015557,2]
[402208300,1768602642608,-9000.0,0.00015557,2]
[402208301,1768602642617,-9000.0,0.00015557,2]
[402208302,1768602642626,-209.40437684,0.00015557,2]
[402208303,1768602642636,-9000.0,0.00015557,2]
[402208304,1768602642646,-9000.0,0.00015557,2]
[402208305,1768602642655,-250.0,0.00015557,2]
[402208306,1768602642664,-322.6107,0.00015557,2]
[402208307,1768602642673,-250.0,0.00015557,2]
[402208308,1768602642683,-1000.0,0.00015557,2]
[402208309,1768602642692,-250.0,0.00015557,2]
[402208310,1768602642702,-3000.0,0.00015557,2]
[402208311,1768602642711,-3000.0,0.00015557,2]
[402208312,1768602642720,-721.12765535,0.00015557,2]
[402208313,1768602642729,-3000.0,0.00015557,2]
[402208314,1768602642739,-500.0,0.00015557,2]
[402208315,1768602642748,-500.0,0.00015557,2]
[402208316,1768602642757,-500.0,0.00015557,2]
[402208318,1768602642770,-500.0,0.00015557,2]
[402208320,1768602642779,-500.0,0.00015557,2]
[402208321,1768602642788,-500.0,0.00015557,2]
[402208322,1768602642797,-500.0,0.00015557,2]
[402208323,1768602642807,-500.0,0.00015557,2]
[402208324,1768602642816,-500.0,0.00015557,2]
[402208325,1768602642825,-500.0,0.00015557,2]
[402208326,1768602642836,-500.0,0.00015557,2]
[402208327,1768602642845,-500.0,0.00015557,2]
[402208328,1768602642854,-250.0,0.00015557,2]
[402208329,1768602642863,-500.0,0.00015557,2]
[402208330,1768602642873,-500.0,0.00015557,2]
[402208331,1768602642882,-250.0,0.00015557,2]
[402208332,1768602642891,-500.0,0.00015557,2]
[402208333,1768602642901,-500.0,0.00015557,2]
[402208334,1768602642910,-500.0,0.00015557,2]
[402208335,1768602642919,-500.0,0.00015557,2]
[402208336,1768602642929,-500.0,0.00015557,2]
[402208337,1768602642938,-250.0,0.00015557,2]
[402208338,1768602642947,-500.0,0.00015557,2]
[402208339,1768602642956,-250.0,0.00015557,2]
[402208340,1768602642965,-500.0,0.00015557,2]
[402208341,1768602642977,-2000.0,0.00015557,2]
[402208342,1768602642986,-250.0,0.00015557,2]
[402208343,1768602642996,-500.0,0.00015557,2]
[402208344,1768602643005,-1239.0,0.00015557,2]
[402208345,1768602643014,-2000.0,0.00015557,2]
[402208346,1768602643024,-250.0,0.00015557,2]
[402208347,1768602643034,-500.0,0.00015557,2]
[402208348,1768602643044,-2000.0,0.00015557,2]
[402208349,1768602643053,-250.0,0.00015557,2]
[402208350,1768602643062,-500.0,0.00015557,2]
[402208351,1768602643072,-620.0,0.00015557,2]
[402208352,1768602643080,-2000.0,0.00015557,2]
[402208353,1768602643090,-250.0,0.00015557,2]
[402208354,1768602643099,-500.0,0.00015557,2]
[402208355,1768602643108,-250.0,0.00015557,2]
[402208356,1768602643117,-2000.0,0.00015557,2]
[402208357,1768602643127,-500.0,0.00015557,2]
[402208358,1768602643136,-2000.0,0.00015557,2]
[402208359,1768602643145,-250.0,0.00015557,2]
[402208360,1768602643155,-500.0,0.00015557,2]
[402208361,1768602643164,-2000.0,0.00015557,2]
[402208362,1768602643174,-250.0,0.00015557,2]
[402208363,1768602643183,-500.0,0.00015557,2]
[402208364,1768602643192,-2000.0,0.00015557,2]
[402208365,1768602643201,-250.0,0.00015557,2]
[402208366,1768602643210,-500.0,0.00015557,2]
[402208367,1768602643219,-2000.0,0.00015557,2]
[402208368,1768602643229,-2000.0,0.00015557,2]
[402208369,1768602643238,-2000.0,0.00015557,2]
[402208370,1768602643247,-958.82692039,0.00015557,2]
[402208371,1768602643257,-560.24699511,0.00015586,2]
[402208372,1768602643266,-152.0,0.00015586,2]
[402208373,1768602643275,-9000.0,0.00015612,2]
[402208374,1768602643284,-151.0,0.0001562,2]
[402208375,1768602643293,-166.66,0.00015686,2]
[402208376,1768602643302,-2000.0,0.00015693,2]
[402208377,1768602643311,-2000.0,0.00015693,2]
[402208378,1768602643320,-2000.0,0.00015693,2]
[402208379,1768602643329,-2000.0,0.00015693,2]
[402208380,1768602643339,-2000.0,0.00015693,2]
[402208381,1768602643348,-2000.0,0.00015693,2]
[402208382,1768602643357,-1000.0,0.00015732,2]
[402208383,1768602643367,-1000.0,0.00015732,2]
[402208384,1768602643378,-1000.0,0.00015732,2]
[402208385,1768602643389,-757.196,0.00015732,2]
[402208386,1768602643398,-2043.68937017,0.00015807,2]
[402208387,1768602643407,-1000.0,0.00015807,2]
[402208388,1768602643417,-1000.0,0.00015807,2]
[402208389,1768602643426,-1000.0,0.00015807,2]
[402208390,1768602643436,-997.213,0.00015807,2]
[402208391,1768602643446,-500.0,0.00015855,2]
[402208392,1768602643456,-433.0,0.0001589,2]
[402208393,1768602643466,-3900.0,0.000159,5]
[402208394,1768602643475,-218.85507462,0.000159,2]
[402208395,1768602643485,-3896.39087375,0.00015976,2]
[402208396,1768602643495,-7213.2829481,0.00015976,2]
[402208397,1768602643504,-150.0,0.00015976,2]
[402208398,1768602643515,-222062.92428664,0.00016,2]
[402208399,1768602643524,-374490.46699687,0.00016,4]
[402208400,1768602643534,-328.90134145,0.0001601,2]
[402208401,1768602643544,-181.08010149,0.00016105,2]
[402208402,1768602643553,-151.0,0.00016105,2]
[402208403,1768602643562,-595.37131296,0.00016105,2]
[402208404,1768602643571,-330.28989388,0.00016105,2]
[402208405,1768602643582,-166.66,0.00016172,2]
[402208406,1768602643591,-570.35,0.00016173,2]
[402208407,1768602643602,-70735.34027559,0.000162,5]
[402208408,1768602643612,-200.0,0.0001634,2]
[402208409,1768602643623,-1500.0,0.00016356,2]
[402208410,1768602643632,-500.0,0.00016356,2]
[402208411,1768602643642,-600.0,0.00016356,2]
[402208412,1768602643651,-835.0,0.000164,2]
[402208413,1768602643661,-207.4,0.00016402,2]
[402208414,1768602643671,-557.48405346,0.00016403,2]
[402208415,1768602643680,-2351.0,0.0001642,2]
[402208416,1768602643689,-500.0,0.00016438,2]
[402208417,1768602643699,-500.0,0.00016438,2]
[402208418,1768602643708,-500.0,0.00016438,2]
[402208419,1768602643717,-500.0,0.00016438,2]
[402208420,1768602643726,-500.0,0.00016438,2]
[402208421,1768602643736,-500.0,0.00016438,2]
[402208422,1768602643746,-500.0,0.00016438,2]
[402208423,1768602643756,-500.0,0.00016438,2]
[402208424,1768602643768,-500.0,0.00016438,2]
[402208425,1768602643778,-500.0,0.00016438,2]
[402208426,1768602643787,-500.0,0.00016438,2]
[402208427,1768602643797,-500.0,0.00016438,2]
[402208428,1768602643807,-500.0,0.00016438,2]
[402208429,1768602643816,-500.0,0.00016438,2]
[402208430,1768602643826,-500.0,0.00016438,2]
[402208431,1768602643836,-500.0,0.00016438,2]
[402208432,1768602643848,-500.0,0.00016438,2]
[402208433,1768602643857,-500.0,0.00016438,2]
[402208434,1768602643866,-500.0,0.00016438,2]
[402208435,1768602643876,-500.0,0.00016438,2]
[402208436,1768602643886,-500.0,0.00016438,2]
[402208437,1768602643895,-500.0,0.00016438,2]
[402208438,1768602643905,-500.0,0.00016438,2]
[402208439,1768602643914,-500.0,0.00016438,2]
[402208440,1768602643922,-500.0,0.00016438,2]
[402208441,1768602643931,-500.0,0.00016438,2]
[402208442,1768602643941,-500.0,0.00016438,2]
[402208443,1768602643950,-500.0,0.00016438,2]
[402208444,1768602643959,-500.0,0.00016438,2]
[402208445,1768602643968,-500.0,0.00016438,2]
[402208446,1768602643977,-500.0,0.00016438,2]
[402208447,1768602643986,-500.0,0.00016438,2]
[402208448,1768602643995,-500.0,0.00016438,2]
[402208449,1768602644003,-500.0,0.00016438,2]
[402208450,1768602644013,-500.0,0.00016438,2]
[402208451,1768602644023,-500.0,0.00016438,2]
[402208452,1768602644033,-500.0,0.00016438,2]
[402208453,1768602644044,-500.0,0.00016438,2]
[402208454,1768602644054,-369.08896318,0.00016438,2]
[402208455,1768602644063,-500.0,0.00016438,2]
[402208456,1768602644073,-500.0,0.00016438,2]
[402208457,1768602644083,-500.0,0.00016438,2]
[402208458,1768602644093,-500.0,0.00016438,2]
[402208459,1768602644102,-747.1541079,0.00016438,2]
[402208460,1768602644111,-747.1541079,0.00016438,2]
[402208461,1768602644121,-747.1541079,0.00016438,2]
[402208462,1768602644131,-747.1541079,0.00016438,2]
[402208463,1768602644140,-747.1541079,0.00016438,2]
[402208464,1768602644150,-747.1541079,0.00016438,2]
[402208465,1768602644159,-747.1541079,0.00016438,2]
[402208466,1768602644168,-747.1541079,0.00016438,2]
[402208467,1768602644178,-747.1541079,0.00016438,2]
[402208468,1768602644189,-747.1541079,0.00016438,2]
[402208469,1768602644200,-747.1541079,0.00016438,2]
[402208470,1768602644210,-747.1541079,0.00016438,2]
[402208471,1768602644219,-747.1541079,0.00016438,2]
[402208472,1768602644228,-747.1541079,0.00016438,2]
[402208473,1768602644238,-747.1541079,0.00016438,2]
[402208474,1768602644248,-747.1541079,0.00016438,2]
[402208475,1768602644259,-747.1541079,0.00016438,2]
[402208476,1768602644268,-747.1541079,0.00016438,2]
[402208477,1768602644278,-551.2260578,0.00016438,2]
[402208478,1768602644287,-500.0,0.00016438,2]
[402208479,1768602644296,-165.03,0.0001644,2]
[402208480,1768602644305,-1222.29178666,0.00016444,2]
[402208481,1768602644315,-29127.46,0.00016452,2]
[402208482,1768602644324,-3896.39087375,0.00016457,2]
[402208483,1768602644332,-7213.2829481,0.00016457,2]
[402208484,1768602644342,-2859.28,0.00016465,2]
[402208485,1768602644351,-500.0,0.00016493,2]
[402208486,1768602644360,-622.09393551,0.00016509,2]
[402208487,1768602644370,-342.66,0.00016525,2]
[402208488,1768602644379,-500.0,0.00016548,2]
[402208489,1768602644388,-359.95197516,0.000166,2]
[402208490,1768602644397,-500.0,0.00016602,2]
[402208491,1768602644406,-187.78006525,0.00016653,2]
[402208492,1768602644415,-151.0,0.00016653,2]
[402208493,1768602644425,-617.40005154,0.00016653,2]
[402208494,1768602644434,-5003.03273076,0.00016656,2]
[402208495,1768602644443,-5000.0,0.00016656,2]
[402208496,1768602644452,-5000.0,0.00016656,2]
[402208497,1768602644461,-5000.0,0.00016656,2]